fUST/lending_fUST_20240325
["ID","MTS","AMOUNT","RATE_DAILY","PERIOD"]
[320406482,1711361711864,-20000.0,0.00049315,120]
[320406483,1711361711887,-20000.0,0.00049315,120]
[320406484,1711361717903,500.0,0.00032452,4]
[320406485,1711361735856,500.0,0.00032452,4]
[320406486,1711361737427,13348.07563897,0.00049315,120]
[320406488,1711361755901,500.0,0.00032452,4]
[320406489,1711361771858,210.01831672,0.00032452,4]
[320406490,1711361778742,644.56413253,0.00032452,4]
[320406491,1711361836549,160.92436103,0.00026615,2]
[320406492,1711361939880,413.14973848,0.00026615,2]
[320406493,1711361948443,607.94320575,0.00026615,2]
[320406494,1711362008465,620.64715729,0.00032918,2]
[320406495,1711362132032,5052.0,0.00032589,2]
[320406496,1711362207914,500.0,0.00032589,4]
[320406498,1711362263918,436.85143,0.00032589,4]
[320406499,1711362428230,-436.128171,0.00034178,2]
[320406500,1711362451098,-63.871829,0.00034178,2]
[320406501,1711362451118,-248.02498931,0.00038186,2]
[320406502,1711362451140,-92.15679486,0.00042202,30]
[320406503,1711362454103,-62.95673571,0.00042202,30]
[320406504,1711362454123,-177.551732,0.000465,2]
[320406505,1711362454145,-478.867801,0.00047658,4]
[320406506,1711362506051,680.94320575,0.00033836,2]
[320406508,1711362555104,-11489.5658408,0.00047405,2]
[320406509,1711362555125,-1443.15862036,0.00047658,4]
[320406510,1711362555145,-211.33899684,0.00047659,4]
[320406511,1711362555166,-20764.78522234,0.0004766,2]
[320406636,1711362638947,-556.43899334,0.00047215,2]
[320406637,1711362638956,-368.15318606,0.0004766,2]
[320406834,1711362640594,-3767.0615916,0.0004766,2]
[320406836,1711362640604,-883.515085,0.00047772,2]
[320406838,1711362640613,-762.35850923,0.00047772,2]
[320407110,1711362643528,-0.70798905,0.00047772,2]
[320407229,1711362644685,262.75785234,0.00034,2]
[320407232,1711362644705,150.00550923,0.00034,2]
[320407235,1711362644726,199.617315,0.00034,2]
[320407238,1711362644745,500.0,0.00034,2]
[320407241,1711362644764,160.90751181,0.00034,2]
[320407245,1711362644792,8726.71181162,0.00034,2]
[320407543,1711362647444,-717.84139732,0.00047772,2]
[320407545,1711362647454,-331.04259,0.00047826,120]
[320407547,1711362647463,-1758.8331683,0.00048463,2]
[320407549,1711362647473,-237.1611622,0.00048564,2]
[320407551,1711362647482,-935.72644077,0.000492,120]
[320407553,1711362647492,-14096.44637031,0.00049214,2]
[320407556,1711362647502,-5991.00070722,0.000493,30]
[320407557,1711362647511,-157.25379636,0.00049313,4]
[320407560,1711362647520,-154.90705577,0.00049313,4]
[320407561,1711362647529,-154.90705577,0.00049313,4]
[320407564,1711362647539,-154.90705577,0.00049313,4]
[320407566,1711362647549,-154.8915759,0.00049313,4]
[320407568,1711362647559,-217.11818671,0.00049314,2]
[320407570,1711362647568,-64.15014398,0.00049315,120]
[320407572,1711362647581,-2744.7681894,0.00049315,120]
[320408026,1711362652334,10000.0,0.00034,2]
[320408607,1711362658253,10000.0,0.00034,2]
[320409130,1711362663835,10000.0,0.00034,2]
[320409646,1711362669264,10000.0,0.00034,2]
[320410123,1711362674309,921.53788085,0.00033999,4]
[320410285,1711362675884,1176.52734233,0.00034,2]
[320410731,1711362681284,1854.25456011,0.000238,2]
[320410732,1711362681312,8145.74543989,0.000238,2]
[320411300,1711362687290,10000.0,0.000238,2]
[320411837,1711362692889,1975.31356257,0.000238,2]
[320412937,1711362705035,10000.0,0.000205,2]
[320413463,1711362710402,10000.0,0.000205,2]
[320418190,1711362762267,-154.8915759,0.00023797,2]
[320418193,1711362762290,-1888.81529834,0.00023797,2]
[320418196,1711362762311,-291.35313108,0.00023798,2]
[320418200,1711362762333,-1478.45909339,0.00023798,2]
[320418203,1711362762356,-47788.22303294,0.00023799,2]
[320418206,1711362762377,-8024.68643743,0.000238,2]
[320418210,1711362762402,-6652.57143092,0.000238,2]
[320419181,1711362772242,160.90751181,0.000205,2]
[320420062,1711363107752,4288.0,0.000205,2]
[320420063,1711363364228,154.90705577,0.000205,2]
[320420064,1711363376345,5000.0,0.0002,2]
[320420065,1711363384225,154.90705577,0.000205,2]
[320420066,1711363400237,156.41894173,0.000205,2]
[320420102,1711363545018,152.01125476,0.00020459,2]
[320420103,1711363626105,-154.90705577,0.00022981,2]
[320420104,1711363626144,-154.90705577,0.00022982,2]
[320420105,1711363626172,-192.09614906,0.00022983,2]
[320420106,1711363626195,-106.03294515,0.00022984,2]
[320420107,1711363631215,-196.56065009,0.00022984,2]
[320420108,1711363631239,-154.90705577,0.00022984,2]
[320420109,1711363631261,-21.92284658,0.00022984,2]
[320420111,1711363745131,-5543.47254561,0.00022822,2]
[320420112,1711363745150,-3000.0,0.00022823,2]
[320420113,1711363745170,-180.22166268,0.00022981,2]
[320420114,1711363745189,-205.27707627,0.00022982,2]
[320420115,1711363745209,-500.0,0.00022984,2]
[320420116,1711363745229,-8166.7427351,0.00023006,2]
[320420117,1711363745248,-322.828959,0.00023008,2]
[320420118,1711363745268,-608.98515856,0.00023009,2]
[320420119,1711363745289,-620.04365662,0.0002301,2]
[320420120,1711363745308,-154.8915759,0.00023797,2]
[320420121,1711363745328,-3347.42856908,0.000238,2]
[320420122,1711363745349,-620.00218283,0.00024161,2]
[320420123,1711363745368,-200.0,0.00024782,2]
[320420124,1711363745389,-24900.0,0.00025017,2]
[320420125,1711363745410,-759.7455163,0.00025271,2]
[320420126,1711363745429,-620.00010914,0.00025369,2]
[320420127,1711363745450,-652.699476,0.0002537,2]
[320420128,1711363745469,-300.0,0.00026309,2]
[320420129,1711363745488,-260.53771478,0.000274,2]
[320420130,1711363745507,-154.90705577,0.00027481,2]
[320420131,1711363745526,-2000.0,0.00027482,2]
[320420132,1711363745546,-2000.0,0.00027622,2]
[320420133,1711363745566,-181.9013355,0.00027661,3]
[320420134,1711363745585,-2032.763596,0.00027761,2]
[320420135,1711363745606,-281.08411472,0.00028837,2]
[320420136,1711363745636,-155.22704553,0.00028837,2]
[320420137,1711363745662,-191.79922562,0.00028837,2]
[320420138,1711363745685,-193.36668002,0.00028837,2]
[320420139,1711363745708,-245.85220772,0.00028837,2]
[320420140,1711363745730,-906.07154389,0.00028837,2]
[320420141,1711363745751,-732.29672417,0.00028838,2]
[320420142,1711363745774,-480.0,0.00028939,2]
[320420143,1711363745795,-7758.48352957,0.00029,2]
[320420144,1711363745815,-5153.77830255,0.0003366,2]
[320420145,1711363745837,-703.70972482,0.00033896,2]
[320420146,1711363745858,-8823.47265767,0.00034,2]
[320420147,1711363745879,-225.69292783,0.00034,4]
[320420148,1711363745900,-3679.50716554,0.00034,4]
[320420149,1711363749120,-3928.03328864,0.00034,4]
[320420150,1711363749141,-156.01843567,0.00034,2]
[320420151,1711363749162,-1822.42783438,0.00035,2]
[320420152,1711363749183,-248.281942,0.00035616,120]
[320420153,1711363749205,-652.699476,0.00038055,2]
[320420154,1711363749228,-177.747183,0.00038252,2]
[320420155,1711363749251,-500.0,0.00038396,15]
[320420156,1711363749272,-500.0,0.00038396,15]
[320420157,1711363749294,-500.0,0.00038396,15]
[320420158,1711363749315,-500.0,0.00038396,15]
[320420159,1711363749337,-500.0,0.00038396,15]
[320420160,1711363749359,-500.0,0.00038396,15]
[320420161,1711363749381,-500.0,0.00038396,15]
[320420162,1711363749404,-562.64444938,0.00038396,15]
[320420163,1711363749426,-500.0,0.00038396,15]
[320420164,1711363749450,-500.0,0.00038396,15]
[320420165,1711363749474,-500.0,0.00038396,15]
[320420166,1711363749496,-703.7097248,0.00038397,2]
[320420167,1711363749518,-248.281942,0.00041553,120]
[320420168,1711363749540,-160.92436103,0.00041844,30]
[320420169,1711363749561,-703.7097248,0.00042898,2]
[320420170,1711363749583,-7000.0,0.000449,120]
[320420171,1711363749606,-420.95932889,0.00047114,2]
[320420172,1711363749627,-703.7097248,0.00047399,2]
[320420173,1711363749647,-248.281942,0.00047489,120]
[320420174,1711363749667,-1440.55107016,0.0004766,30]
[320420175,1711363749687,-5708.67614382,0.000482,2]
[320420176,1711363757154,60.47194615,0.00029,2]
[320420177,1711363757180,231.81644758,0.00029,2]
[320420178,1711363757201,500.0,0.00029,2]
[320420179,1711363759118,-199.617315,0.00029,2]
[320420180,1711363759175,-106.9563986,0.00029,2]
[320420181,1711363812595,126.9523834,0.000428,2]
[320420205,1711363832455,-153.6871692,0.000428,2]
[320420207,1711363832465,-414.29612576,0.00047657,15]
[320420210,1711363832475,-280.6395526,0.000478,2]
[320420211,1711363832485,-250.0,0.00047936,2]
[320420213,1711363832494,-515.2709563,0.00048305,4]
[320420216,1711363832507,-168.69708719,0.00048305,4]
[320420243,1711363832641,-5083.22676133,0.00048305,4]
[320420246,1711363832651,-521.76489752,0.00048306,4]
[320420249,1711363832661,-1481.33642265,0.00048306,4]
[320420252,1711363832670,-1696.35251677,0.00048306,4]
[320420255,1711363832681,-479.01494872,0.00048306,4]
[320420258,1711363832690,-11739.58541691,0.00049,120]
[320420261,1711363832699,-150.0,0.00049,30]
[320420264,1711363832712,-205.45420651,0.00049313,4]
[320420267,1711363832722,-4577.71087872,0.00049313,4]
[320420270,1711363832731,-155.09604555,0.00049313,4]
[320420272,1711363832740,-205.27707627,0.00049313,4]
[320420274,1711363832751,-325.7746573,0.00049313,4]
[320420276,1711363832761,-608.98918546,0.00049313,4]
[320420278,1711363832774,-228.79011957,0.00049313,7]
[320420280,1711363832785,-618.07160549,0.00049314,120]
[320420282,1711363832795,-20000.0,0.00049315,120]
[320420284,1711363832805,-20000.0,0.00049315,120]
[320420286,1711363832816,-3045.57313533,0.000499,120]
[320420389,1711363838596,-954.42686467,0.000499,120]
[320420391,1711363838606,-20000.0,0.00049996,120]
[320420393,1711363838615,-188.0883102,0.00049997,4]
[320420395,1711363838624,-389.67599052,0.00049997,2]
[320420397,1711363838634,-157.25312677,0.00049997,4]
[320420399,1711363838643,-876.67409275,0.00049997,4]
[320420401,1711363838653,-5000.0,0.0005,120]
[320420403,1711363838662,-248.281942,0.00050342,120]
[320420405,1711363838672,-300.0,0.00051,120]
[320420407,1711363838681,-620.12575012,0.00051774,4]
[320420409,1711363838690,-449.68359556,0.00051774,4]
[320420411,1711363838699,-187.60782747,0.00051774,2]
[320420413,1711363838712,-155.33569197,0.00051774,4]
[320420415,1711363838723,-210.16491797,0.00051774,4]
[320420417,1711363838734,-155.12596019,0.00051774,4]
[320420419,1711363838743,-1612.30007072,0.00051774,4]
[320420421,1711363838753,-158.51207554,0.00051774,4]
[320420423,1711363838763,-160.71175292,0.00051774,4]
[320420425,1711363838772,-779.49019222,0.00051774,4]
[320420427,1711363838783,-346.95241351,0.00051775,2]
[320420429,1711363838794,-537.40733763,0.00051775,4]
[320420431,1711363838803,-577.14755315,0.00051775,4]
[320420433,1711363838814,-271.38477907,0.00051775,4]
[320420435,1711363838823,-3507.17728951,0.00051775,4]
[320420437,1711363838832,-171.19599345,0.00051775,4]
[320420439,1711363838842,-1955.55699751,0.00051775,4]
[320420441,1711363838851,-394.24656469,0.00051775,30]
[320420443,1711363838860,-470.70840451,0.00051775,4]
[320420445,1711363838870,-155.23302835,0.00051775,4]
[320420447,1711363838880,-304.78785734,0.00051775,4]
[320420449,1711363838891,-561.94813412,0.00051775,4]
[320420451,1711363838900,-1697.93061341,0.00051775,4]
[320420453,1711363838909,-151.0,0.00051775,7]
[320420455,1711363838918,-151.0,0.00051775,7]
[320420457,1711363838928,-500.0,0.00051775,120]
[320420459,1711363838939,-226.32370158,0.00051775,120]
[320420461,1711363838947,-500.0,0.00051775,120]
[320420463,1711363838956,-500.0,0.00051775,120]
[320420465,1711363838967,-394.62167355,0.00051775,120]
[320420467,1711363838976,-500.0,0.00051775,120]
[320420469,1711363838985,-402.99558786,0.00051775,120]
[320420471,1711363838995,-500.0,0.00051775,120]
[320420473,1711363839004,-500.0,0.00051775,120]
[320420475,1711363839013,-500.0,0.00051775,120]
[320420477,1711363839022,-500.0,0.00051775,120]
[320420479,1711363839032,-500.0,0.00051775,120]
[320420481,1711363839043,-500.0,0.00051775,120]
[320420483,1711363839052,-500.0,0.00051775,120]
[320420485,1711363839061,-500.0,0.00051775,120]
[320420487,1711363839070,-500.0,0.00051775,120]
[320420489,1711363839079,-500.0,0.00051775,120]
[320420491,1711363839089,-195.93434647,0.00051775,120]
[320420493,1711363839098,-500.0,0.00051775,120]
[320420495,1711363839108,-500.0,0.00051775,120]
[320420497,1711363839117,-500.0,0.00051775,120]
[320420499,1711363839127,-500.0,0.00051775,120]
[320420501,1711363839136,-603.88375021,0.00051775,120]
[320420503,1711363839145,-500.0,0.00051775,120]
[320420505,1711363839155,-500.0,0.00051775,120]
[320420507,1711363839164,-239.36345383,0.00051776,4]
[320420508,1711363839174,-212.28505858,0.00051776,4]
[320420511,1711363839186,-275.58221609,0.00051776,4]
[320420513,1711363839196,-1300.90046864,0.00051776,4]
[320420514,1711363839205,-20000.0,0.00051776,120]
[320420516,1711363839215,-151.0,0.00051777,7]
[320420518,1711363839225,-151.0,0.00051777,7]
[320420520,1711363839234,-786.080937,0.00051777,7]
[320420522,1711363839244,-786.080937,0.00051777,7]
[320420524,1711363839254,-151.0,0.00051777,7]
[320420527,1711363839263,-2058.304821,0.00051777,7]
[320420529,1711363839273,-2058.304821,0.00051777,7]
[320420531,1711363839282,-151.0,0.00051777,7]
[320420533,1711363839292,-703.7097248,0.000519,2]
[320420535,1711363839302,-19493.25852733,0.00051999,61]
[320420537,1711363839312,-20000.0,0.00051999,120]
[320420539,1711363839322,-6881.33,0.00051999,120]
[320420541,1711363839331,-5000.0,0.00051999,120]
[320420543,1711363839341,-500.0,0.00051999,2]
[320420544,1711363839351,-500.0,0.00051999,2]
[320420546,1711363839361,-603.70308766,0.00051999,2]
[320420548,1711363839370,-151.0,0.00051999,7]
[320420550,1711363839379,-181.282355,0.00051999,7]
[320420552,1711363839389,-358.835073,0.00051999,7]
[320420566,1711363839514,-358.835073,0.00051999,7]
[320420568,1711363839525,-2000.0,0.00052,9]
[320420570,1711363839534,-151.0,0.00052,7]
[320420572,1711363839544,-151.0,0.00052,7]
[320420574,1711363839553,-1000.0,0.00052051,60]
[320420576,1711363839562,-1000.0,0.00052051,60]
[320420578,1711363839571,-1000.0,0.00052051,60]
[320420580,1711363839580,-1000.0,0.00052051,60]
[320420582,1711363839589,-1000.0,0.00052051,60]
[320420584,1711363839598,-1000.0,0.00052051,60]
[320420586,1711363839608,-1000.0,0.00052051,60]
[320420588,1711363839617,-1000.0,0.00052051,60]
[320420590,1711363839626,-1000.0,0.00052051,60]
[320420592,1711363839636,-1000.0,0.00052051,60]
[320420594,1711363839645,-1000.0,0.00052051,60]
[320420596,1711363839655,-1000.0,0.00052051,60]
[320420598,1711363839664,-1000.0,0.00052051,60]
[320420600,1711363839674,-1000.0,0.00052051,60]
[320420602,1711363839684,-1000.0,0.00052051,60]
[320420604,1711363839693,-1000.0,0.00052051,60]
[320420606,1711363839702,-1000.0,0.00052051,60]
[320420608,1711363839715,-1000.0,0.00052051,60]
[320420610,1711363839725,-1000.0,0.00052051,60]
[320420612,1711363839734,-1000.0,0.00052051,60]
[320420614,1711363839743,-1104.92777759,0.00052051,60]
[320420616,1711363839754,-1000.0,0.00052051,30]
[320420618,1711363839764,-732.68,0.00052051,30]
[320420619,1711363839773,-786.080937,0.00052051,7]
[320420620,1711363839782,-786.080937,0.00052051,7]
[320420621,1711363839791,-151.0,0.00052051,7]
[320420622,1711363839801,-81.70581836,0.00052051,7]
[320421016,1711363843710,-1976.59900264,0.00052051,7]
[320421018,1711363843720,-2058.304821,0.00052051,7]
[320421020,1711363843732,-151.0,0.00052051,7]
[320421022,1711363843741,-201.038,0.00052199,120]
[320421024,1711363843750,-5000.0,0.00052273,120]
[320421026,1711363843759,-151.0,0.00052325,7]
[320421028,1711363843769,-155.555022,0.00052325,7]
[320421030,1711363843778,-155.3053039,0.00052466,2]
[320421032,1711363843788,-153.0,0.00052466,2]
[320421034,1711363843800,-153.0,0.00052466,2]
[320421036,1711363843810,-153.0,0.00052466,2]
[320421038,1711363843820,-153.0,0.00052466,2]
[320421040,1711363843830,-153.0,0.00052466,2]
[320421042,1711363843839,-3094.55774095,0.00052547,120]
[320421044,1711363843849,-358.835073,0.00052547,7]
[320421045,1711363843859,-358.835073,0.00052547,7]
[320421047,1711363843869,-151.0,0.00052595,7]
[320421050,1711363843879,-151.0,0.00052595,7]
[320421051,1711363843889,-5312.54331113,0.00052821,120]
[320421287,1711363846705,-1568.78668887,0.00052821,120]
[320421289,1711363846715,-151.0,0.00052821,7]
[320421291,1711363846731,-15269.3388872,0.000529,30]
[320421494,1711363921694,-16989.0,0.00049315,120]
[320421495,1711364025720,-154.90705577,0.00028837,2]
[320421496,1711364025744,-248.4253305,0.00028838,2]
[320421497,1711364035903,12236.66420017,0.0002,2]
[320421498,1711364045389,20749.00341356,0.00027374,5]
[320421501,1711364063364,-11019.99658644,0.00027374,5]
[320421502,1711364063665,688.44756833,0.0002,2]
[320421503,1711364082812,251.859224,0.00022,2]
[320421504,1711364083671,635.20301271,0.0002,2]
[320421505,1711364390715,-2000.0,0.00027529,2]
[320421506,1711364397836,-2000.0,0.00027715,2]
[320421508,1711364830147,-360.23059022,0.00027715,2]
[320421509,1711364838110,-139.76940978,0.00027715,2]
[320421510,1711364838131,-1000.0,0.00038,30]
[320421511,1711364838152,-2644.93343496,0.0004,7]
[320421512,1711364838171,-205.27707627,0.00047419,4]
[320421513,1711364838191,-8512.04997406,0.00047419,4]
[320421514,1711364838213,-164.051908,0.00047421,2]
[320421515,1711364838233,-164.051908,0.00047421,11]
[320421516,1711364838253,-164.051908,0.00047421,21]
[320421517,1711364838272,-164.051908,0.00047421,31]
[320421518,1711364838292,-164.051908,0.00047421,41]
[320421519,1711364838314,-164.051908,0.00047421,51]
[320421520,1711364838333,-164.051908,0.00047421,60]
[320421521,1711364838352,-164.051908,0.00047421,70]
[320421522,1711364838372,-164.051908,0.00047421,80]
[320421523,1711364838392,-164.051908,0.00047421,90]
[320421524,1711364838411,-164.051908,0.00047421,100]
[320421525,1711364838433,-164.051908,0.00047421,110]
[320421526,1711364838454,-164.051908,0.00047421,119]
[320421527,1711364838475,-200.0,0.00047483,2]
[320421528,1711364838497,-177.649457,0.00047606,2]
[320421529,1711364838520,-608.98515856,0.00047792,4]
[320421530,1711364838540,-322.828959,0.00047793,4]
[320421531,1711364838561,-180.22166268,0.00047793,4]
[320421532,1711364838583,-24900.0,0.00047794,2]
[320421533,1711364838603,-232.776711,0.00047836,2]
[320421534,1711364838623,-593.945393,0.00047848,2]
[320421535,1711364838643,-299.0,0.00048125,4]
[320421536,1711364838663,-359.0,0.00048127,2]
[320421537,1711364838687,-3900.41380897,0.00048822,2]
[320421538,1711364838707,-1000.0,0.00049,120]
[320421539,1711364838727,-960.36827237,0.00049,30]
[320421540,1711364839110,-38.63172763,0.00049,30]
[320421541,1711364839134,-155.85698215,0.00049311,4]
[320421542,1711364839159,-209.98271236,0.00049312,4]
[320421543,1711364839291,-500.0,0.00049312,120]
[320421544,1711364839314,-500.0,0.00049312,120]
[320421545,1711364839335,-467.19740482,0.00049312,120]
[320421546,1711364839357,-500.0,0.00049312,120]
[320421547,1711364839379,-500.0,0.00049312,120]
[320421548,1711364839401,-500.0,0.00049312,120]
[320421549,1711364839422,-500.0,0.00049312,120]
[320421550,1711364839443,-644.47059551,0.00049312,120]
[320421551,1711364839464,-500.0,0.00049312,120]
[320421552,1711364839485,-500.0,0.00049312,120]
[320421553,1711364839505,-500.0,0.00049312,120]
[320421554,1711364839527,-388.48704137,0.00049312,120]
[320421555,1711364839548,-500.0,0.00049312,120]
[320421556,1711364839570,-439.19790727,0.00049312,120]
[320421557,1711364839591,-500.0,0.00049312,120]
[320421558,1711364839611,-500.0,0.00049312,120]
[320421559,1711364839632,-500.0,0.00049312,120]
[320421560,1711364839652,-500.0,0.00049312,120]
[320421561,1711364839673,-500.0,0.00049312,120]
[320421562,1711364839693,-233.8338704,0.00049313,4]
[320421563,1711364848091,-552.02077474,0.00049313,4]
[320421564,1711364848113,-1462.80250328,0.00049313,4]
[320421565,1711364852138,-110.79767734,0.00049313,4]
[320421566,1711364852158,-389.20232266,0.00049313,7]
[320421581,1711365007944,226.42456802,0.0004271,15]
[320421582,1711365007966,393.61897946,0.0004271,15]
[320421583,1711365009049,130.39549434,0.00044845,15]
[320421584,1711365009072,489.60668303,0.00044845,15]
[320421607,1711365032659,-150.0,0.00047212,2]
[320421608,1711365032670,-200.0,0.00048474,2]
[320421609,1711365032680,-915.26291574,0.00049313,7]
[320421683,1711365039153,-54.51605225,0.00049313,7]
[320421684,1711365039162,-1378.25986287,0.00049313,4]
[320421685,1711365039236,-142.30856664,0.00049313,4]
[320421759,1711365041861,-596.33097133,0.00049313,4]
[320421777,1711365044037,-15018.75365077,0.00049313,4]
[320421787,1711365138286,178.64177547,0.00028015,2]
[320421807,1711366025170,-160.87070723,0.00029898,2]
[320421808,1711366025191,-500.0,0.00029899,2]
[320421809,1711366025212,-760.26372955,0.0003,120]
[320421810,1711366025234,-250.0,0.00045286,2]
[320421811,1711366025255,-828.86556322,0.00045726,4]
[320421812,1711366039144,-220.84896871,0.00045171,30]
[320421813,1711366039171,-371.11073215,0.00045726,4]
[320421814,1711366042109,-765.4672542,0.00045726,4]
[320421815,1711366045111,-1219.37626871,0.00045726,4]
[320421816,1711366050106,-582.81550276,0.00045726,4]
[320421817,1711366052104,-627.752526,0.00045726,4]
[320421825,1711366149088,-248.02498931,0.00029798,2]
[320421826,1711366150148,-177.551732,0.00045231,2]
[320421827,1711366150168,-221.859323,0.00045534,2]
[320421828,1711366150188,-4116.66212702,0.00045726,4]
[320421829,1711366150207,-3000.0,0.00045727,2]
[320421830,1711366150228,-191.6243584,0.00045741,120]
[320421831,1711366150249,-155.11353057,0.00045989,30]
[320421832,1711366150269,-8166.7427351,0.00046505,2]
[320421833,1711366150290,-177.747184,0.00046627,2]
[320421834,1711366150310,-151.52464932,0.00046669,12]
[320421835,1711366150330,-181.91902324,0.00046769,4]
[320421836,1711366150350,-183.1544279,0.00046769,4]
[320421837,1711366150370,-478.867801,0.00046769,4]
[320421838,1711366150390,-322.69074111,0.00046769,4]
[320421839,1711366150413,-315.42965291,0.00046769,4]
[320421840,1711366150437,-155.64112387,0.0004677,4]
[320421841,1711366150458,-255.02565286,0.00046867,4]
[320421842,1711366150479,-24900.0,0.00046868,2]
[320422392,1711366243072,-200.48928,0.00048311,4]
[320422394,1711366243082,-155.80068588,0.00048311,4]
[320422396,1711366243091,-125.71003412,0.00048311,4]
[320422401,1711366243128,-44.6266062,0.00048311,4]
[320422403,1711366243138,-3296.29570482,0.00048312,120]
[320422405,1711366243147,-1000.0,0.00049,120]
[320422407,1711366243157,-1742.75171566,0.00049212,4]
[320422409,1711366243166,-151.67819944,0.00049214,10]
[320422411,1711366243175,-210.16491797,0.00049311,4]
[320422413,1711366243184,-9.68802402,0.00049311,4]
[320422417,1711366243215,-150.0081765,0.00049311,4]
[320422695,1711366246256,-457.58542104,0.00049311,4]
[320422697,1711366246266,-779.72077743,0.00049311,4]
[320422699,1711366246276,-3384.22507014,0.00049311,4]
[320422701,1711366246285,-605.14923493,0.00049311,4]
[320422703,1711366246294,-157.64663537,0.00049312,4]
[320422705,1711366246305,-19852.6352387,0.00049313,4]
[320422707,1711366246314,-683.96804349,0.00049313,4]
[320422709,1711366246324,-864.38002108,0.00049313,4]
[320422711,1711366246333,-642.19058925,0.00049313,4]
[320422713,1711366246343,-2082.77466787,0.00049313,7]
[320422715,1711366246355,-3278.90430091,0.00049313,4]
[320422717,1711366246365,-415.81782775,0.00049313,4]
[320422720,1711366246374,-516.0534774,0.00049313,2]
[320422723,1711366246383,-798.38751546,0.00049313,7]
[320422726,1711366246392,-205.27707627,0.00049313,4]
[320422728,1711366246402,-395.7275146,0.00049313,4]
[320422730,1711366246412,-730.3001382,0.00049313,4]
[320422732,1711366246421,-216.65401619,0.00049314,120]
[320422735,1711366246431,-246.19862434,0.00049314,120]
[320422738,1711366246441,-500.0,0.00049314,120]
[320422741,1711366246450,-169.12357438,0.00049314,120]
[320422744,1711366246463,-500.0,0.00049314,120]
[320422747,1711366246473,-500.0,0.00049314,120]
[320422750,1711366246482,-500.0,0.00049314,120]
[320422753,1711366246491,-424.99110452,0.00049314,120]
[320422756,1711366246502,-258.78030395,0.00049314,120]
[320422759,1711366246512,-500.0,0.00049314,120]
[320422762,1711366246521,-500.0,0.00049314,120]
[320422765,1711366246531,-500.0,0.00049314,120]
[320422768,1711366246541,-500.0,0.00049314,120]
[320422771,1711366246550,-500.0,0.00049314,120]
[320422774,1711366246559,-500.0,0.00049314,120]
[320422777,1711366246567,-396.95615642,0.00049314,120]
[320424300,1711367238148,-250.68884351,0.0003945,4]
[320424301,1711367238171,-97.92342617,0.00044383,4]
[320424302,1711367241412,-174.12730885,0.00040436,30]
[320424303,1711367241435,-128.50114185,0.00044383,4]
[320424304,1711367241464,-221.859323,0.00046809,2]
[320424305,1711367241486,-177.649457,0.00046812,2]
[320424306,1711367241510,-375.44854589,0.00047214,2]
[320424307,1711367241535,-530.35742916,0.00047231,2]
[320424308,1711367246123,-438.36981434,0.00047231,2]
[320424309,1711367253160,-1929.37453848,0.00047231,2]
[320424310,1711367254161,-1269.41604207,0.00047231,2]
[320424311,1711367347084,-918.05702244,0.00039369,5]
[320424312,1711367347106,-998.0,0.00041441,30]
[320424313,1711367347131,-998.0,0.00043622,30]
[320424314,1711367348166,-998.0,0.00045918,30]
[320424315,1711367348188,-155.31879382,0.0004723,4]
[320424316,1711367348212,-231.53540675,0.00047231,2]
[320424342,1711367432206,-151.87943046,0.00028647,2]
[320424343,1711367432216,-250.29903059,0.00045131,2]
[320424344,1711367432226,-238.97723603,0.00047231,2]
[320424394,1711367438096,-9027.8966809,0.00047231,2]
[320424545,1711367440343,-500.0,0.00047231,2]
[320424815,1711367443335,-10734.07285227,0.00047231,2]
[320424816,1711367443345,-2000.0,0.000474,2]
[320424817,1711367443364,-175.611962,0.00047582,2]
[320424818,1711367443376,-167.36856254,0.00047588,4]